bitfinex/quotes_BTCUSD_20251208
["timestamp","ask_amount","ask_price","bid_price","bid_amount"]
[1765181475256,0.00218783,91640.0,91639.0,0.06212036]
[1765181475406,0.00218783,91640.0,91639.0,0.28036804]
[1765181478882,0.00218783,91640.0,91639.0,0.06212036]
[1765181484573,0.0421607,91640.0,91639.0,0.011]
[1765181485960,0.0411607,91640.0,91639.0,0.002]
[1765181486138,0.2291835,91630.0,91627.0,0.01115]
[1765181486719,0.21827389,91628.0,91627.0,0.01115]
[1765181488038,0.21827389,91628.0,91627.0,0.01215]
[1765181489146,0.21827389,91628.0,91627.0,0.01315]
[1765181489343,0.21827389,91628.0,91627.0,0.002]
[1765181491569,0.21871163,91628.0,91627.0,0.002]
[1765181494773,0.00043774,91628.0,91627.0,0.002]
[1765181495100,0.03879774,91628.0,91627.0,0.002]
[1765181495982,0.03918824,91628.0,91627.0,0.002]
[1765181496390,0.00082824,91628.0,91627.0,0.002]
[1765181497450,0.03918824,91628.0,91627.0,0.002]
[1765181501054,0.10171123,91628.0,91627.0,0.002]
[1765181501861,0.10171123,91628.0,91611.0,0.04392751]
[1765181501862,0.01091536,91614.0,91611.0,0.04392751]
[1765181502134,0.21831201,91612.0,91611.0,0.04392751]
[1765181502256,0.01091571,91611.0,91608.0,0.01115]
[1765181502907,0.01091571,91611.0,91608.0,0.02206607]
[1765181503117,0.01091571,91611.0,91608.0,0.04545607]
[1765181503318,0.01091548,91613.0,91609.0,0.22923511]
[1765181503531,0.01091548,91613.0,91609.0,0.01091595]
[1765181503745,0.01091571,91611.0,91608.0,0.03454]
[1765181503943,0.01091571,91611.0,91608.0,0.03554]
[1765181504861,0.0109156,91612.0,91609.0,0.01091595]
[1765181505141,0.2292235,91614.0,91610.0,0.01091583]
[1765181505844,0.01091536,91614.0,91611.0,0.01091571]
[1765181506142,0.01091512,91616.0,91612.0,0.22922761]
[1765181506344,0.01091452,91621.0,91618.0,0.01091488]
[1765181507151,0.01091464,91620.0,91616.0,0.01091512]
[1765181507373,0.0109144,91622.0,91617.0,0.22921509]
[1765181507529,0.23243856,91621.0,91617.0,0.010915]
[1765181508371,0.22943856,91621.0,91617.0,0.010915]
[1765181508732,0.014148,91621.0,91617.0,0.010915]
[1765181510497,0.014148,91621.0,91618.0,0.01091488]
[1765181510694,0.00323348,91621.0,91618.0,0.22921121]
[1765181511394,0.23243866,91621.0,91618.0,0.01091488]
[1765181511595,0.22943866,91621.0,91617.0,0.010915]
[1765181511783,0.23243866,91621.0,91617.0,0.010915]
[1765181511985,0.00323348,91621.0,91618.0,0.03430488]
[1765181512183,0.00323348,91621.0,91618.0,0.25260055]
[1765181513086,0.00023348,91621.0,91618.0,0.25260055]
[1765181513470,0.00323348,91621.0,91618.0,0.25260055]
[1765181513676,0.00323348,91621.0,91620.0,0.23364294]
[1765181513677,0.00023348,91621.0,91620.0,0.23364294]
[1765181514100,0.00123348,91621.0,91620.0,0.25703294]
[1765181514318,0.00123348,91621.0,91620.0,0.01535]
[1765181514888,0.00023348,91621.0,91620.0,0.01535]
[1765181515855,0.00023348,91621.0,91620.0,0.23364294]
[1765181516588,0.00023348,91621.0,91617.0,0.010915]
[1765181516709,0.010915,91617.0,91614.0,0.01091429]
[1765181516925,0.010915,91617.0,91611.0,0.24037991]
[1765181516926,0.01091536,91614.0,91605.0,0.03430643]
[1765181517241,0.01091571,91611.0,91607.0,0.010915]
[1765181517864,0.01091571,91611.0,91606.0,0.01091631]
[1765181518050,0.01091571,91611.0,91608.0,0.01315]
[1765181518248,0.0109156,91612.0,91608.0,0.01115]
[1765181518449,0.01091536,91614.0,91610.0,0.01091583]
[1765181518694,0.02731927,91614.0,91611.0,0.03430571]
[1765181518932,0.03823463,91614.0,91610.0,0.01091583]
[1765181519125,0.01091548,91613.0,91610.0,0.01091583]
[1765181519926,0.03823463,91614.0,91610.0,0.01091583]
[1765181520134,0.22921188,91619.0,91614.0,0.01091536]
[1765181520430,0.22921188,91619.0,91615.0,0.22921991]
[1765181520677,0.01091488,91618.0,91615.0,0.01091524]
[1765181521013,0.011148,91621.0,91617.0,0.010915]
[1765181521225,0.00023348,91621.0,91620.0,0.01535]
[1765181521628,0.00023348,91621.0,91620.0,0.03874]
[1765181522414,0.00123348,91621.0,91620.0,0.03874]
[1765181522830,0.00023348,91621.0,91620.0,0.03874]
[1765181523500,0.00323348,91621.0,91620.0,0.03874]
[1765181525647,0.00323348,91621.0,91615.0,0.04368967]
[1765181525648,0.21830247,91616.0,91606.0,0.02339]
[1765181525826,0.22922767,91612.0,91609.0,0.06953607]
[1765181525975,0.01091571,91611.0,91608.0,0.08068619]
[1765181526227,0.0109156,91612.0,91608.0,0.02206607]
[1765181526430,0.0109156,91612.0,91609.0,0.01091595]
[1765181526812,0.22923092,91611.0,91608.0,0.01115]
[1765181527009,0.0109156,91612.0,91608.0,0.02206607]
[1765181527201,0.0109156,91612.0,91609.0,0.001]
[1765181527606,0.0109156,91612.0,91609.0,0.01191595]
[1765181528025,0.0109156,91612.0,91611.0,0.001]
[1765181528426,0.0109156,91612.0,91609.0,0.01091595]
[1765181528573,0.01091536,91614.0,91610.0,0.2292326]
[1765181529175,0.01091536,91614.0,91610.0,0.01091583]
[1765181531049,0.01091548,91613.0,91609.0,0.01091595]
[1765181531249,0.01091548,91613.0,91610.0,0.01091583]
[1765181531673,0.01091536,91614.0,91610.0,0.22923251]
[1765181532027,0.01091536,91614.0,91610.0,0.01091583]
[1765181532251,0.01091571,91611.0,91608.0,0.02206607]
[1765181532875,0.01091548,91613.0,91608.0,0.01091607]
[1765181533724,0.01091548,91613.0,91608.0,0.01191607]
[1765181533864,0.01091571,91611.0,91608.0,0.01091607]
[1765181534072,0.01091548,91613.0,91610.0,0.01091583]
[1765181534705,0.01091548,91613.0,91609.0,0.01091595]
[1765181534913,0.01091536,91614.0,91610.0,0.2292326]
[1765181535210,0.01091536,91614.0,91611.0,0.01091571]
[1765181535764,0.01091536,91614.0,91610.0,0.2292326]
[1765181535765,0.00023348,91621.0,91620.0,0.21829294]
[1765181535968,0.00023348,91621.0,91620.0,0.23449294]
[1765181536182,0.00023348,91621.0,91620.0,0.25716294]
[1765181537234,0.00423348,91621.0,91620.0,0.25716294]
[1765181537961,0.00423348,91621.0,91620.0,0.26807591]
[1765181539098,0.00023348,91621.0,91620.0,0.26807591]
[1765181543060,0.00023348,91621.0,91620.0,0.04978297]
[1765181543263,0.00023348,91621.0,91620.0,0.01091297]
[1765181543667,0.03864348,91621.0,91620.0,0.01091297]
[1765181543871,0.22922536,91613.0,91609.0,0.02206595]
[1765181544066,0.0109156,91612.0,91610.0,0.03277519]
[1765181544271,0.01091548,91613.0,91610.0,0.04369102]
[1765181544770,0.01091548,91613.0,91610.0,0.03277519]
[1765181545007,0.01091512,91616.0,91611.0,0.2292301]
[1765181545187,0.01091524,91615.0,91612.0,0.0109156]
[1765181545387,0.01091524,91615.0,91611.0,0.2292301]
[1765181545388,0.01091536,91614.0,91611.0,0.01091571]
[1765181546014,0.01091536,91614.0,91610.0,0.04369102]
[1765181546211,0.01091536,91614.0,91610.0,0.01091583]
[1765181546614,0.01091536,91614.0,91611.0,0.03277647]
[1765181548572,0.01091536,91614.0,91611.0,0.05544647]
[1765181549052,0.01091536,91614.0,91611.0,0.02267]
[1765181549254,0.01091536,91614.0,91612.0,0.03277647]
[1765181549658,0.22921847,91616.0,91612.0,0.26200353]
[1765181550022,0.22921847,91616.0,91612.0,0.22922706]
[1765181550478,0.22921847,91616.0,91613.0,0.03277647]
[1765181550859,0.22921847,91616.0,91609.0,0.01115]
[1765181550860,0.0109156,91612.0,91609.0,0.01115]
[1765181551063,0.21830724,91614.0,91609.0,0.01115]
[1765181551064,0.03823451,91615.0,91610.0,0.01906602]
[1765181551259,0.22921324,91618.0,91614.0,0.01091536]
[1765181551460,0.011148,91621.0,91617.0,0.02735]
[1765181551934,0.00023348,91621.0,91620.0,0.0162]
[1765181552386,0.011148,91621.0,91617.0,0.022065]
[1765181552568,0.001,91618.0,91617.0,0.022065]
[1765181552772,0.01091464,91620.0,91617.0,0.022065]
[1765181553169,0.01091464,91620.0,91617.0,0.044735]
[1765181553590,0.00023348,91621.0,91618.0,0.22921259]
[1765181554937,0.003,91620.0,91618.0,0.22921259]
[1765181555234,0.00023348,91621.0,91618.0,0.22921259]
[1765181555417,0.00323348,91621.0,91618.0,0.25188259]
[1765181555820,0.00023348,91621.0,91618.0,0.25188259]
[1765181556022,0.003,91620.0,91619.0,0.21829322]
[1765181556441,0.00023348,91621.0,91619.0,0.21829322]
[1765181556692,0.00323348,91621.0,91619.0,0.21829322]
[1765181557330,0.014148,91621.0,91618.0,0.02182917]
[1765181557556,0.21829294,91620.0,91618.0,0.01091429]
[1765181558131,0.22129294,91620.0,91618.0,0.01091429]
[1765181558351,0.21829294,91620.0,91618.0,0.01091429]
[1765181558759,0.22129294,91620.0,91618.0,0.01091429]
[1765181559394,0.003,91620.0,91618.0,0.01091429]
[1765181559594,0.003,91620.0,91618.0,0.03358429]
[1765181561124,0.003,91620.0,91618.0,0.01091429]
[1765181561981,0.22129324,91620.0,91618.0,0.01091429]
[1765181562459,0.003,91620.0,91618.0,0.01091429]
[1765181563461,0.22129486,91620.0,91618.0,0.01091429]
[1765181567332,0.21830724,91614.0,91611.0,0.01115]
[1765181567936,0.21830724,91614.0,91613.0,0.03558]
[1765181568339,0.24060724,91614.0,91613.0,0.02443]
[1765181568523,0.24060724,91614.0,91602.0,0.21833571]
[1765181568524,0.22924649,91605.0,91602.0,0.06977012]
[1765181568723,0.01091595,91609.0,91607.0,0.02443]
[1765181569554,0.21832154,91608.0,91607.0,0.02443]
[1765181569771,0.21832154,91608.0,91597.0,0.05862012]
[1765181569772,0.21834061,91600.0,91597.0,0.05862012]
[1765181570095,0.21834061,91600.0,91590.0,0.01091822]
[1765181570096,0.01091738,91597.0,91591.0,0.05862012]
[1765181570323,0.22927271,91594.0,91590.0,0.01091822]
[1765181570527,0.01091774,91594.0,91590.0,0.01091822]
[1765181570746,0.01091774,91594.0,91591.0,0.0109181]
[1765181571684,0.0109175,91596.0,91593.0,0.01091786]
[1765181572663,0.0109175,91596.0,91591.0,0.0464981]
[1765181572857,0.22927015,91595.0,91591.0,0.0220681]
[1765181573024,0.01091774,91594.0,91591.0,0.0220681]
[1765181573224,0.21835729,91593.0,91591.0,0.01115]
[1765181575679,0.21836445,91590.0,91589.0,0.01115]
[1765181575822,0.21837531,91586.0,91584.0,0.01115]
[1765181576316,0.22928829,91588.0,91584.0,0.01115]
[1765181576522,0.21837459,91586.0,91584.0,0.01115]
[1765181578798,0.01091917,91582.0,91578.0,0.01115]
[1765181578969,0.22929768,91584.0,91579.0,0.24046009]
[1765181579158,0.22929768,91584.0,91579.0,0.02206953]
[1765181579371,0.22929768,91584.0,91580.0,0.03534941]
[1765181579570,0.01091893,91584.0,91581.0,0.01091929]
[1765181580758,0.01091893,91584.0,91581.0,0.03534929]
[1765181580962,0.01091893,91584.0,91582.0,0.03278686]
[1765181581788,0.01091834,91589.0,91583.0,0.01091905]
[1765181581990,0.26597158,91592.0,91588.0,0.01091846]
[1765181582158,0.01091798,91592.0,91588.0,0.01091846]
[1765181582556,0.0109181,91591.0,91588.0,0.01091846]
[1765181582988,0.01091822,91590.0,91587.0,0.01091858]
[1765181583392,0.01091834,91589.0,91586.0,0.2292925]
[1765181583617,0.01091834,91589.0,91586.0,0.01091869]
[1765181584137,0.01091846,91588.0,91585.0,0.05485567]
[1765181584424,0.22928774,91588.0,91585.0,0.05485567]
[1765181584623,0.01091834,91589.0,91585.0,0.2732307]
[1765181584830,0.01091834,91589.0,91585.0,0.2976607]
[1765181585264,0.01091834,91589.0,91586.0,0.001]
[1765181586334,0.01091834,91589.0,91585.0,0.07928567]
[1765181586561,0.01091834,91589.0,91585.0,0.08128567]
[1765181587110,0.01091834,91589.0,91585.0,0.29766127]
[1765181587313,0.01091834,91589.0,91586.0,0.001]
[1765181587588,0.01091834,91589.0,91585.0,0.29766127]
[1765181587762,0.01091834,91589.0,91585.0,0.29966127]
[1765181588144,0.01091834,91589.0,91585.0,0.29766127]
[1765181588350,0.01091834,91589.0,91586.0,0.01091869]
[1765181589097,0.01091822,91590.0,91587.0,0.01091858]
[1765181589245,0.01091822,91590.0,91587.0,0.22928983]
[1765181589846,0.01091822,91590.0,91587.0,0.01091858]
[1765181590051,0.01091834,91589.0,91586.0,0.01191869]
[1765181591119,0.01091834,91589.0,91586.0,0.01202539]
[1765181592501,0.2183576,91593.0,91586.0,0.01202539]
[1765181592502,0.01206,91598.0,91595.0,0.01091762]
[1765181592867,0.01091738,91597.0,91592.0,0.01091798]
[1765181593043,0.01091738,91597.0,91593.0,0.01091786]
[1765181593630,0.02731927,91595.0,91591.0,0.0220681]
[1765181594654,0.03823689,91595.0,91592.0,0.01091798]
[1765181595209,0.02731927,91595.0,91592.0,0.01091798]
[1765181595423,0.03823689,91595.0,91591.0,0.0220681]
[1765181595648,0.22927265,91594.0,91591.0,0.01115]
[1765181595922,0.21836462,91590.0,91588.0,0.03278686]
[1765181598259,0.21836462,91590.0,91588.0,0.03378686]
[1765181598460,0.21835968,91592.0,91588.0,0.03378686]
[1765181598735,0.218363,91591.0,91588.0,0.03378686]
[1765181599379,0.218363,91591.0,91588.0,0.03278686]
[1765181599736,0.2292811,91591.0,91588.0,0.03378686]
[1765181601369,0.2292811,91591.0,91588.0,0.001]
[1765181601617,0.2183666,91590.0,91588.0,0.001]
[1765181601917,0.01091822,91590.0,91586.0,0.04381225]
[1765181602150,0.01091822,91590.0,91588.0,0.001]
[1765181602325,0.01148,91594.0,91589.0,0.21836683]
[1765181602826,0.02239774,91594.0,91591.0,0.0109181]
[1765181603885,0.01091786,91593.0,91589.0,0.01091834]
[1765181604089,0.01148,91594.0,91591.0,0.0109181]
[1765181604466,0.01148,91594.0,91592.0,0.21835968]
[1765181604893,0.02731927,91595.0,91592.0,0.21835968]
[1765181605822,0.02731927,91595.0,91592.0,0.22927766]
[1765181607113,0.02731927,91595.0,91593.0,0.21835503]
[1765181608176,0.02731927,91595.0,91591.0,0.0109181]
[1765181608177,0.03823689,91595.0,91591.0,0.0109181]
[1765181608520,0.03823689,91595.0,91591.0,0.22927917]
[1765181609267,0.0109175,91596.0,91592.0,0.22927567]
[1765181609482,0.01091679,91602.0,91595.0,0.02609762]
[1765181609652,0.01091667,91603.0,91598.0,0.01091726]
[1765181609837,0.01091667,91603.0,91600.0,0.21834051]
[1765181610335,0.01091679,91602.0,91599.0,0.01115]
[1765181611556,0.21834018,91601.0,91599.0,0.01115]
[1765181612140,0.21834018,91601.0,91594.0,0.02206774]
[1765181612401,0.01091738,91597.0,91594.0,0.01115]
[1765181612811,0.01091738,91597.0,91594.0,0.02206774]
[1765181614527,0.01091714,91599.0,91596.0,0.0109175]
[1765181615494,0.002,91597.0,91596.0,0.0109175]
[1765181615815,0.01091714,91599.0,91596.0,0.0109175]
[1765181616313,0.01291714,91599.0,91596.0,0.0109175]
[1765181616496,0.01091714,91599.0,91596.0,0.0109175]
[1765181616818,0.002,91597.0,91596.0,0.0109175]
[1765181617604,0.002,91597.0,91596.0,0.0260975]
[1765181617764,0.002,91597.0,91596.0,0.0492075]
[1765181617984,0.002,91597.0,91596.0,0.07455893]
[1765181618202,0.002,91597.0,91596.0,0.39755893]
[1765181618319,0.002,91597.0,91596.0,2.2964075]
[1765181618525,0.002,91597.0,91596.0,2.32574396]
[1765181619355,0.002,91597.0,91596.0,5.41874396]
[1765181620096,0.002,91597.0,91596.0,3.62544396]
[1765181620302,0.002,91597.0,91596.0,0.40154396]
[1765181620502,0.002,91597.0,91596.0,2.05308396]
[1765181620664,0.0109144,91622.0,91618.0,0.01091488]
[1765181620869,0.00184635,91621.0,91619.0,0.23553533]
[1765181621405,0.00184635,91621.0,91620.0,0.03277501]
[1765181621768,0.00384635,91621.0,91620.0,0.03277501]
[1765181621972,0.00184635,91621.0,91620.0,0.03277501]
[1765181622681,0.00384635,91621.0,91620.0,0.03277501]
[1765181623817,0.00184635,91621.0,91620.0,0.03277501]
[1765181624039,0.00184635,91621.0,91620.0,0.25106795]
[1765181624329,0.00184635,91621.0,91620.0,0.03277501]
[1765181624330,0.02020635,91621.0,91620.0,0.03277501]
[1765181624485,0.21829294,91620.0,91619.0,0.01724]
[1765181624669,0.010915,91617.0,91613.0,0.01091548]
[1765181624869,0.01148,91616.0,91614.0,0.01724]
[1765181627665,0.01148,91616.0,91614.0,0.23554582]
[1765181628854,0.01148,91616.0,91614.0,0.26832258]
[1765181629832,0.00184635,91621.0,91620.0,0.21829294]
[1765181630033,0.00184635,91621.0,91620.0,0.23442294]
[1765181630237,0.00184635,91621.0,91620.0,0.25773294]
[1765181630755,0.24559117,91629.0,91627.0,0.01115]
[1765181630756,0.02731927,91629.0,91627.0,0.01115]
[1765181631104,0.24559181,91629.0,91627.0,0.01115]
[1765181632142,0.25650479,91629.0,91626.0,0.01724]
[1765181632744,0.01091357,91629.0,91626.0,0.01724]
[1765181632948,0.01091309,91633.0,91629.0,0.01091357]
[1765181633197,0.01091309,91633.0,91629.0,0.02704357]
[1765181633357,0.01091309,91633.0,91629.0,0.05035357]
[1765181633864,0.01091238,91639.0,91635.0,0.21825517]
[1765181634183,0.01091238,91639.0,91636.0,0.01115]
[1765181634358,0.0004,91640.0,91637.0,0.22916403]
[1765181634562,0.0004,91640.0,91639.0,0.21824768]
[1765181635783,0.0004,91640.0,91639.0,0.25768768]
[1765181637005,0.0004,91640.0,91639.0,0.23437768]
[1765181637434,0.00095437,91640.0,91639.0,0.23437768]
[1765181637599,0.00395437,91640.0,91639.0,0.25737768]
[1765181637748,0.00395437,91640.0,91639.0,0.21793768]
[1765181637950,0.00395437,91640.0,91637.0,0.22916403]
[1765181638145,0.0034,91640.0,91639.0,0.21824768]
[1765181641574,0.0034,91640.0,91639.0,0.25899768]
[1765181642248,0.0034,91640.0,91639.0,0.04075]
[1765181643192,0.0034,91640.0,91639.0,0.25899768]
[1765181644204,0.0034,91640.0,91639.0,0.27030875]
[1765181644414,0.0034,91640.0,91639.0,0.24590875]
[1765181644616,0.00395437,91640.0,91639.0,0.24590875]
[1765181644928,0.00395437,91640.0,91639.0,0.27030875]
[1765181653034,0.00095437,91640.0,91639.0,0.27030875]
[1765181653386,0.00095437,91640.0,91639.0,0.27130875]
[1765181659262,0.00095437,91640.0,91639.0,0.31044994]
[1765181660314,0.00095437,91640.0,91639.0,0.27130875]
[1765181660685,0.00095437,91640.0,91639.0,0.05306107]
[1765181660889,0.00095437,91640.0,91639.0,0.0922718]
[1765181661849,0.00134487,91640.0,91639.0,0.0922718]
[1765181662216,0.00134487,91640.0,91639.0,0.05306107]
[1765181662621,0.00134487,91640.0,91639.0,0.04175]
[1765181664214,0.00134487,91640.0,91639.0,0.10051308]
[1765181664415,0.00134487,91640.0,91639.0,0.10970908]
[1765181665648,0.00134487,91640.0,91639.0,0.10051308]
[1765181667375,0.00134487,91640.0,91639.0,0.04175]
[1765181678263,0.21959017,91640.0,91639.0,0.04175]
[1765181678461,0.00134487,91640.0,91639.0,0.04175]
[1765181679580,0.00134487,91640.0,91639.0,0.25999768]
[1765181688918,0.00134487,91640.0,91639.0,0.04175]
[1765181689308,0.21959017,91640.0,91639.0,0.04175]
[1765181690462,0.21959017,91640.0,91639.0,0.10068209]
[1765181691211,0.00134487,91640.0,91639.0,0.10068209]
[1765181691406,0.21959017,91640.0,91639.0,0.10068209]
[1765181691628,0.00134487,91640.0,91639.0,0.04175]
[1765181691832,0.00134487,91640.0,91639.0,0.25999768]
[1765181696789,0.00134487,91640.0,91639.0,0.04175]
[1765181697610,0.00134487,91640.0,91639.0,0.0182]
[1765181698544,0.00295774,91640.0,91639.0,0.05748087]
[1765181700903,0.00295774,91640.0,91639.0,0.0182]
[1765181701387,0.00134487,91640.0,91639.0,0.05833]
[1765181701558,0.00134487,91640.0,91639.0,0.067526]
[1765181702926,0.00134487,91640.0,91639.0,0.07619054]
[1765181704161,0.00134487,91640.0,91639.0,0.05833]
[1765181705998,0.00134487,91640.0,91639.0,0.07253315]
[1765181706225,0.00134487,91640.0,91639.0,0.07952963]
[1765181706432,0.00134487,91640.0,91639.0,0.40252963]
[1765181706638,0.00134487,91640.0,91639.0,0.38133]
[1765181707716,0.00134487,91640.0,91639.0,5.38133]
[1765181708354,0.00134487,91640.0,91639.0,5.38033]
[1765181708785,0.00134487,91640.0,91639.0,5.38533]
[1765181708992,0.00134487,91640.0,91639.0,5.38033]
[1765181709420,0.00134487,91640.0,91639.0,5.38933]
[1765181710000,0.0004,91650.0,91647.0,0.01091143]
[1765181710152,0.0004,91650.0,91649.0,5.34967]
[1765181710345,0.0004,91650.0,91649.0,5.37247]
[1765181710653,0.0004,91650.0,91649.0,5.37683738]
[1765181711124,0.00069171,91650.0,91649.0,5.37683738]
[1765181711401,0.00069171,91650.0,91649.0,5.38083738]
[1765181712169,0.00069171,91650.0,91649.0,5.37683738]
[1765181712765,0.00069171,91650.0,91649.0,0.37683738]
[1765181712973,0.00069171,91650.0,91649.0,5.41115665]
[1765181713197,0.00069171,91650.0,91649.0,5.41215665]
[1765181713821,0.00069171,91650.0,91649.0,5.41115665]
[1765181714023,0.00069171,91650.0,91649.0,5.42835665]
[1765181714237,0.00069171,91650.0,91649.0,5.43035665]
[1765181715315,0.00069171,91650.0,91649.0,5.50861147]
[1765181715921,0.0004,91660.0,91659.0,0.323]
[1765181716118,0.0004,91660.0,91659.0,5.35642]
[1765181716318,0.0004,91660.0,91659.0,5.37988]
[1765181716542,0.00069167,91660.0,91659.0,5.37988]
[1765181716739,0.00069167,91660.0,91659.0,5.38424683]
[1765181716942,0.00069167,91660.0,91659.0,5.38524683]
[1765181717625,0.00069167,91660.0,91659.0,5.38824683]
[1765181721488,0.0004,91670.0,91669.0,5.54117626]
[1765181721689,0.0004,91670.0,91669.0,5.58574626]
[1765181721891,0.0004,91680.0,91679.0,0.54115246]
[1765181722110,0.0004,91680.0,91679.0,5.57457246]
[1765181722332,0.0004,91680.0,91679.0,5.59803246]
[1765181722761,0.0004,91680.0,91679.0,5.60239815]
[1765181724349,0.0004,91680.0,91679.0,2.11899815]
[1765181724583,0.0004,91680.0,91679.0,2.10779815]
[1765181724803,0.0004,91680.0,91679.0,2.12499815]
[1765181725008,0.0004,91680.0,91679.0,1.22499815]
[1765181725221,0.0004,91680.0,91679.0,5.60539815]
[1765181725987,0.0004,91680.0,91679.0,5.60239815]
[1765181726188,0.0004,91680.0,91679.0,5.60339815]
[1765181726416,0.0004,91680.0,91679.0,5.60539815]
[1765181726586,0.0004,91680.0,91679.0,5.60439815]
[1765181726799,0.0004,91680.0,91679.0,3.28069815]
[1765181727250,0.0024,91680.0,91679.0,3.36229815]
[1765181727459,0.0024,91680.0,91679.0,1.28289815]
[1765181727695,0.00298317,91680.0,91679.0,1.28289815]
[1765181728093,0.00298317,91680.0,91679.0,4.43629815]
[1765181728597,0.00298317,91680.0,91679.0,1.81409815]
[1765181728843,0.00298317,91680.0,91679.0,1.78189815]
[1765181729195,0.00298317,91680.0,91679.0,1.79269815]
[1765181729395,0.00298317,91680.0,91679.0,1.83170392]
[1765181730250,0.00310034,91680.0,91679.0,3.84260392]
[1765181730774,0.00310034,91680.0,91679.0,3.80359815]
[1765181731098,0.00310034,91680.0,91679.0,5.60239815]
[1765181731300,0.00310034,91680.0,91679.0,1.79249815]
[1765181731552,0.00310034,91680.0,91679.0,0.60239815]
[1765181736966,0.00110034,91680.0,91679.0,0.60239815]
[1765181737192,0.00110034,91680.0,91679.0,5.60239815]
[1765181737510,0.00110034,91680.0,91679.0,5.60339815]
[1765181738319,0.00110034,91680.0,91679.0,5.60439815]
[1765181738746,0.00110034,91680.0,91679.0,5.60339815]
[1765181738947,0.00110034,91680.0,91679.0,5.60239815]
[1765181739158,0.00110034,91680.0,91679.0,5.60339815]
[1765181739357,0.00110034,91680.0,91679.0,5.60439815]
[1765181739558,0.00110034,91680.0,91679.0,5.60239815]
[1765181740015,0.00110034,91680.0,91679.0,5.68766778]
[1765181740472,0.00110034,91680.0,91679.0,5.60939815]
[1765181743627,0.0004,91690.0,91689.0,0.54112867]
[1765181743828,0.0004,91690.0,91689.0,5.57449867]
[1765181744076,0.0004,91690.0,91689.0,5.59758867]
[1765181744272,0.0004,91690.0,91689.0,5.60849189]
[1765181744853,0.0004,91690.0,91689.0,5.60949189]
[1765181745523,0.0004,91690.0,91689.0,5.61049189]
[1765181746305,0.0004,91690.0,91689.0,5.60949189]
[1765181746657,0.0004,91690.0,91689.0,5.61449189]
[1765181746861,0.0004,91690.0,91689.0,5.60949189]
[1765181747287,0.0004,91690.0,91689.0,5.61349189]
[1765181747697,0.0004,91690.0,91689.0,5.61549189]
[1765181748155,0.0004,91690.0,91689.0,5.61349189]
[1765181748492,0.0004,91690.0,91689.0,5.61549189]
[1765181751180,0.0004,91690.0,91689.0,5.69378929]
[1765181751418,0.0004,91690.0,91689.0,5.61549189]
[1765181754289,0.00069152,91690.0,91689.0,5.61549189]
[1765181761531,0.00069152,91690.0,91689.0,5.59829189]
[1765181761730,0.00069152,91690.0,91689.0,5.61549189]
[1765181762048,1.52e-06,91690.0,91689.0,5.61549189]
[1765181762251,0.0004,91700.0,91699.0,5.54110488]
[1765181762439,0.0004,91700.0,91699.0,5.57447488]
[1765181762638,0.0004,91700.0,91699.0,5.59756488]
[1765181762838,0.0004,91700.0,91699.0,5.60846691]
[1765181763333,0.0004,91700.0,91699.0,5.68776824]
[1765181763535,0.0004,91700.0,91699.0,5.60946691]
[1765181764140,1e-08,91700.0,91699.0,5.6719899]
[1765181764336,0.0004,91720.0,91719.0,0.54105732]
[1765181764535,0.00051708,91720.0,91719.0,5.57442732]
[1765181764792,0.00051708,91720.0,91719.0,0.36226]
[1765181764991,0.00051708,91720.0,91719.0,0.0043647]
[1765181765164,0.00051708,91720.0,91719.0,0.08024162]
[1765181765490,0.00351708,91720.0,91719.0,0.10028628]
[1765181765745,0.00051708,91720.0,91719.0,0.0611547]
[1765181766376,0.00351708,91720.0,91719.0,0.0611547]
[1765181768731,0.00351708,91720.0,91719.0,5.40533584]
[1765181768935,0.00351708,91720.0,91719.0,5.3841547]
[1765181769093,0.00439131,91720.0,91719.0,5.46239251]
[1765181769589,0.00139131,91720.0,91719.0,5.46239251]
[1765181769790,0.00239131,91720.0,91719.0,5.3861547]
[1765181770262,0.00239131,91720.0,91719.0,5.3841547]
[1765181771003,0.00139131,91720.0,91719.0,5.3841547]
[1765181771401,0.00139131,91720.0,91719.0,5.3699547]
[1765181771603,0.00139131,91720.0,91719.0,5.46831479]
[1765181772220,0.00139131,91720.0,91719.0,5.46231479]
[1765181772638,0.00139131,91720.0,91719.0,5.3881547]
[1765181773245,0.00139131,91720.0,91719.0,5.46628181]
[1765181776197,0.00139131,91720.0,91719.0,5.3881547]
[1765181776772,0.00139131,91720.0,91719.0,0.3881547]
[1765181777089,0.00139131,91720.0,91719.0,5.3881547]
[1765181780228,0.00139131,91720.0,91719.0,5.46628181]
[1765181780773,0.00139131,91720.0,91719.0,0.46628181]
[1765181781027,0.00139131,91720.0,91719.0,5.46628181]
[1765181783361,0.00139131,91720.0,91719.0,5.3881547]
[1765181783706,0.00139131,91720.0,91719.0,5.3709547]
[1765181783911,0.00139131,91720.0,91719.0,5.3881547]
[1765181785447,0.00139131,91720.0,91719.0,5.46633045]
[1765181786468,0.00139131,91720.0,91719.0,5.3881547]
[1765181787211,0.00139131,91720.0,91719.0,5.3709547]
[1765181787429,0.00139131,91720.0,91719.0,5.3881547]
[1765181789625,0.00139131,91720.0,91719.0,5.39035526]
[1765181789782,8.526e-05,91720.0,91719.0,5.48807413]
[1765181789980,8.526e-05,91720.0,91719.0,5.39035526]
[1765181790182,8.526e-05,91720.0,91719.0,5.45287825]
[1765181790390,8.526e-05,91720.0,91719.0,5.45067769]
[1765181792028,8.98e-06,91720.0,91719.0,5.45067769]
[1765181792961,8.98e-06,91720.0,91719.0,5.44667769]
[1765181793160,8.98e-06,91720.0,91719.0,5.45067769]
[1765181793397,8.98e-06,91720.0,91719.0,5.45667769]
[1765181797023,8.98e-06,91720.0,91719.0,5.3769547]
[1765181797214,8.98e-06,91720.0,91719.0,5.3941547]
[1765181798218,8.98e-06,91720.0,91719.0,5.3881547]
[1765181798447,8.98e-06,91720.0,91719.0,5.3891547]
[1765181798609,8.98e-06,91720.0,91719.0,5.3851547]
[1765181798797,8.98e-06,91720.0,91719.0,5.3881547]
[1765181799399,8.98e-06,91720.0,91719.0,5.3851547]
[1765181799656,8.98e-06,91720.0,91719.0,5.3881547]
[1765181799858,0.0004,91730.0,91727.0,0.01090191]
[1765181800065,0.0004,91730.0,91729.0,5.34977]
[1765181800274,0.0004,91730.0,91729.0,5.36697]
[1765181800429,0.0004,91730.0,91729.0,5.39195]
[1765181800631,0.00069134,91730.0,91729.0,5.39631339]
[1765181801351,0.00269134,91730.0,91729.0,5.39631339]
[1765181801550,0.00069134,91730.0,91729.0,5.07561339]
[1765181801767,0.00069134,91730.0,91729.0,4.98511339]
[1765181801969,0.00269134,91730.0,91729.0,4.98711339]
[1765181802184,0.00269134,91730.0,91729.0,0.39831339]
[1765181802391,0.00269134,91730.0,91729.0,5.39831339]
[1765181804321,0.00269134,91730.0,91729.0,5.49617494]